Department,Entity, Transaction Date, Expense Type, Expense Area, Supplier Name,Transaction number, Amount, Invoice Description
DFID,CSC,29/07/2020,Alumni Engagement,Programme Costs,Amex,NOM000972,1000,
DFID,CSC,06/07/2020,Engagement,Programme Costs,NatWest CC,NOM000979,160.9,
DFID,CSC,06/07/2020,Engagement,Programme Costs,NatWest CC,NOM000979,59,
DFID,CSC,06/07/2020,Engagement,Programme Costs,NatWest CC,NOM000979,127.11,
DFID,CSC,06/07/2020,Engagement,Programme Costs,NatWest CC,NOM000979,62.66,
DFID,CSC,06/07/2020,Engagement,Programme Costs,NatWest CC,NOM000979,20.46,
DFID,CSC,06/07/2020,Engagement,Programme Costs,NatWest CC,NOM000979,101.51,
DFID,CSC,06/07/2020,Scholar Travel,Award Costs,NatWest CC,NOM000981,1227.58,
DFID,CSC,03/07/2020,Scholar Allowances,Award Costs,Scholar,PCR000192,-476,
DFID,CSC,03/07/2020,Scholar Stipend,Award Costs,Scholar,PCR000192,-1110,
DFID,CSC,03/07/2020,Scholar Allowances,Award Costs,Scholar,PCR000193,-239,
DFID,CSC,03/07/2020,Scholar Allowances,Award Costs,Scholar,PCR000193,-473,
DFID,CSC,03/07/2020,Scholar Stipend,Award Costs,Scholar,PCR000193,-1110,
DFE,CSC,03/07/2020,Scholar Allowances,Award Costs,University of Exeter,PIN047611,600,
DFE,CSC,03/07/2020,Scholar Allowances,Award Costs,University of Exeter,PIN047611,170,
DFE,CSC,03/07/2020,Scholar Stipend,Award Costs,University of Exeter,PIN047612,13200,
DFID,CSC,03/07/2020,Tuition Fee,Award Costs,University of Manchester,PIN047614,18000,
DFID,CSC,03/07/2020,Tuition Fee,Award Costs,University of Manchester,PIN047615,1682,
DFID,CSC,03/07/2020,Tuition Fee,Award Costs,Staffordshire University,PIN047616,1057.5,
DFID,CSC,03/07/2020,Tuition Fee,Award Costs,Staffordshire University,PIN047617,2115,
DFID,CSC,03/07/2020,Tuition Fee,Award Costs,Staffordshire University,PIN047618,2115,
DFID,CSC,03/07/2020,Tuition Fee,Award Costs,Staffordshire University,PIN047619,2115,
DFID,CSC,03/07/2020,Tuition Fee,Award Costs,Staffordshire University,PIN047620,1057.5,
DFID,CSC,03/07/2020,Award Support Costs,Award Costs,University of Durham,PIN047621,1400,
DFID,CSC,03/07/2020,Tuition Fee,Award Costs,University of Durham,PIN047621,13920,
DFID,CSC,03/07/2020,Award Support Costs,Award Costs,University of Durham,PIN047621,1400,
DFID,CSC,03/07/2020,Tuition Fee,Award Costs,University of Durham,PIN047621,13920,
DFID,CSC,03/07/2020,Tuition Fee,Award Costs,University of Durham,PIN047621,320,
DFID,CSC,03/07/2020,Award Support Costs,Award Costs,University of Durham,PIN047621,3000,
DFID,CSC,03/07/2020,Tuition Fee,Award Costs,University of Durham,PIN047621,18000,
DFID,CSC,03/07/2020,Tuition Fee,Award Costs,University of Durham,PIN047621,320,
DFID,CSC,03/07/2020,Tuition Fee,Award Costs,University of Durham,PIN047621,15400,
DFID,CSC,03/07/2020,Tuition Fee,Award Costs,University of Durham,PIN047621,15200,
DFID,CSC,03/07/2020,Award Support Costs,Award Costs,University of Durham,PIN047622,-3000,
DFID,CSC,01/07/2020,Scholar Stipend,Award Costs,Scholar,PIN047624,1362,
DFID,CSC,01/07/2020,Scholar Stipend,Award Costs,Scholar,PIN047625,510.55,
DFID,CSC,01/07/2020,Scholar Allowances,Award Costs,Scholar,PIN047626,239,
DFID,CSC,01/07/2020,Scholar Allowances,Award Costs,Scholar,PIN047626,356,
DFID,CSC,01/07/2020,Scholar Stipend,Award Costs,Scholar,PIN047626,1110,
DFID,CSC,01/07/2020,Scholar Stipend,Award Costs,Scholar,PIN047627,1110,
DFID,CSC,02/07/2020,Scholar Stipend,Award Costs,Scholar,PIN047628,1110,
DFID,CSC,03/07/2020,Scholar Stipend,Award Costs,Scholar,PIN047629,1362,
DFID,CSC,03/07/2020,Scholar Stipend,Award Costs,Scholar,PIN047630,1110,
DFID,CSC,03/07/2020,Scholar Stipend,Award Costs,Scholar,PIN047631,1110,
DFID,CSC,03/07/2020,Scholar Stipend,Award Costs,Scholar,PIN047632,1110,
DFID,CSC,03/07/2020,Scholar Allowances,Award Costs,Scholar,PIN047633,476,
DFID,CSC,03/07/2020,Scholar Stipend,Award Costs,Scholar,PIN047633,1110,
DFID,CSC,03/07/2020,Scholar Allowances,Award Costs,Scholar,PIN047634,239,
DFID,CSC,03/07/2020,Scholar Allowances,Award Costs,Scholar,PIN047634,473,
DFID,CSC,03/07/2020,Scholar Stipend,Award Costs,Scholar,PIN047634,1110,
DFID,CSC,03/07/2020,Scholar Stipend,Award Costs,Scholar,PIN047635,1110,
DFID,CSC,03/07/2020,Scholar Stipend,Award Costs,Scholar,PIN047636,1110,
DFID,CSC,03/07/2020,Scholar Stipend,Award Costs,Scholar,PIN047637,1110,
DFID,CSC,03/07/2020,Scholar Stipend,Award Costs,Scholar,PIN047638,857,
DFID,CSC,03/07/2020,Scholar Stipend,Award Costs,Scholar,PIN047640,1110,
DFID,CSC,03/07/2020,Scholar Allowances,Award Costs,Scholar,PIN047641,476,
DFID,CSC,03/07/2020,Scholar Stipend,Award Costs,Scholar,PIN047641,1110,
DFID,CSC,03/07/2020,Scholar Allowances,Award Costs,Scholar,PIN047642,239,
DFID,CSC,03/07/2020,Scholar Allowances,Award Costs,Scholar,PIN047642,473,
DFID,CSC,03/07/2020,Scholar Stipend,Award Costs,Scholar,PIN047642,1110,
DFID,CSC,07/07/2020,Scholar Stipend,Award Costs,Scholar,PIN047643,1362,
DFID,CSC,07/07/2020,Scholar Stipend,Award Costs,Scholar,PIN047644,1110,
DFID,CSC,07/07/2020,Scholar Stipend,Award Costs,Scholar,PIN047645,2220,
DFID,CSC,07/07/2020,Scholar Stipend,Award Costs,Scholar,PIN047646,1110,
DFID,CSC,07/07/2020,Scholar Stipend,Award Costs,Scholar,PIN047647,1110,
DFID,CSC,07/07/2020,Scholar Stipend,Award Costs,Scholar,PIN047648,1110,
DFID,CSC,10/07/2020,Scholar Allowances,Award Costs,Glasgow Caledonian University,PIN047649,450,
DFID,CSC,10/07/2020,Scholar Allowances,Award Costs,Glasgow Caledonian University,PIN047649,400,
DFID,CSC,10/07/2020,Tuition Fee,Award Costs,University of Strathclyde,PIN047650,15160,
DFID,CSC,10/07/2020,Award Support Costs,Award Costs,University of Strathclyde,PIN047651,1815,
DFID,CSC,10/07/2020,Scholar Travel,Award Costs,Scholar,PIN047654,955,
DFID,CSC,10/07/2020,Tuition Fee,Award Costs,University of Durham,PIN047656,168800,
DFID,CSC,10/07/2020,Scholar Travel,Award Costs,Scholar,PIN047657,680,
DFID,CSC,10/07/2020,Scholar Engagement,Programme Costs,Juan Casasbuenas,PIN047661,600,
DFID,CSC,10/07/2020,Scholar Engagement,Programme Costs,Commission Chair,PIN047667,593.26,
DFID,CSC,10/07/2020,Scholar Engagement,Programme Costs,Commission Chair,PIN047667,189.5,
DFID,CSC,10/07/2020,Commission Meetings,Admin Costs,Commission Chair,PIN047667,112.05,
DFID,CSC,10/07/2020,Commission Meetings,Admin Costs,Commission Chair,PIN047667,226.8,
DFID,CSC,10/07/2020,Commission Meetings,Admin Costs,Commission Chair,PIN047667,876.46,
DFID,CSC,10/07/2020,Scholar Allowances,Award Costs,Scholar,PIN047669,1260,
DFID,CSC,14/07/2020,Scholar Allowances,Award Costs,Scholar,PIN047670,239,
DFID,CSC,14/07/2020,Scholar Allowances,Award Costs,Scholar,PIN047670,473,
DFID,CSC,14/07/2020,Scholar Stipend,Award Costs,Scholar,PIN047670,1110,
DFID,CSC,14/07/2020,Scholar Stipend,Award Costs,Scholar,PIN047671,1110,
DFID,CSC,14/07/2020,Scholar Travel,Award Costs,Scholar,PIN047672,950,
DFID,CSC,14/07/2020,Scholar Stipend,Award Costs,Scholar,PIN047673,1110,
DFID,CSC,15/07/2020,Scholar Stipend,Award Costs,Scholar,PIN047674,510.55,
DFID,CSC,17/07/2020,Scholar Allowances,Award Costs,Scholar,PIN047675,600,
DFID,CSC,17/07/2020,Scholar Travel,Award Costs,Diversity Travel,PIN047676,1551.18,
DFID,CSC,17/07/2020,Scholar Travel,Award Costs,Diversity Travel,PIN047676,1513.76,
DFID,CSC,17/07/2020,Scholar Travel,Award Costs,Diversity Travel,PIN047676,1404.25,
DFID,CSC,17/07/2020,Scholar Travel,Award Costs,Diversity Travel,PIN047676,1148.98,
DFID,CSC,17/07/2020,Scholar Travel,Award Costs,Diversity Travel,PIN047676,1140.29,
DFID,CSC,17/07/2020,Scholar Travel,Award Costs,Diversity Travel,PIN047676,1130.29,
DFID,CSC,17/07/2020,Scholar Travel,Award Costs,Diversity Travel,PIN047676,1080.84,
DFID,CSC,17/07/2020,Scholar Travel,Award Costs,Diversity Travel,PIN047676,968.16,
DFID,CSC,17/07/2020,Scholar Travel,Award Costs,Diversity Travel,PIN047676,905.47,
DFID,CSC,17/07/2020,Fieldwork Airfare,Award Costs,Diversity Travel,PIN047676,900.65,
DFID,CSC,17/07/2020,Scholar Travel,Award Costs,Diversity Travel,PIN047676,778.19,
DFID,CSC,17/07/2020,Scholar Travel,Award Costs,Diversity Travel,PIN047676,762.77,
DFID,CSC,17/07/2020,Scholar Travel,Award Costs,Diversity Travel,PIN047676,717.39,
DFID,CSC,17/07/2020,Scholar Travel,Award Costs,Diversity Travel,PIN047676,628.21,
DFID,CSC,17/07/2020,Scholar Travel,Award Costs,Diversity Travel,PIN047676,590.66,
DFID,CSC,17/07/2020,Fieldwork Airfare,Award Costs,Diversity Travel,PIN047676,513.87,
DFID,CSC,17/07/2020,Scholar Travel,Award Costs,Diversity Travel,PIN047676,512.93,
DFID,CSC,17/07/2020,Scholar Travel,Award Costs,Diversity Travel,PIN047676,505.69,
DFID,CSC,17/07/2020,Scholar Travel,Award Costs,Diversity Travel,PIN047676,462.37,
DFID,CSC,17/07/2020,Scholar Travel,Award Costs,Diversity Travel,PIN047676,448.04,
DFID,CSC,17/07/2020,Scholar Travel,Award Costs,Diversity Travel,PIN047676,447.36,
DFID,CSC,17/07/2020,Scholar Travel,Award Costs,Diversity Travel,PIN047676,405.37,
DFID,CSC,17/07/2020,Scholar Travel,Award Costs,Diversity Travel,PIN047676,342.37,
DFID,CSC,17/07/2020,Scholar Travel,Award Costs,Diversity Travel,PIN047676,245,
DFID,CSC,17/07/2020,Scholar Travel,Award Costs,Diversity Travel,PIN047676,167.09,
DFID,CSC,17/07/2020,Scholar Travel,Award Costs,Diversity Travel,PIN047676,82.1,
DFID,CSC,17/07/2020,Scholar Travel,Award Costs,Diversity Travel,PIN047676,80,
DFID,CSC,17/07/2020,Scholar Travel,Award Costs,Diversity Travel,PIN047676,76.6,
DFID,CSC,17/07/2020,Scholar Travel,Award Costs,Diversity Travel,PIN047676,76.6,
DFID,CSC,17/07/2020,Scholar Travel,Award Costs,Diversity Travel,PIN047676,76.6,
DFID,CSC,17/07/2020,Scholar Travel,Award Costs,Diversity Travel,PIN047676,50.5,
DFID,CSC,17/07/2020,Scholar Travel,Award Costs,Diversity Travel,PIN047676,40.1,
DFID,CSC,17/07/2020,Scholar Travel,Award Costs,Diversity Travel,PIN047676,38.1,
DFID,CSC,17/07/2020,Scholar Travel,Award Costs,Diversity Travel,PIN047676,36.1,
DFID,CSC,17/07/2020,Scholar Travel,Award Costs,Diversity Travel,PIN047676,29,
DFID,CSC,17/07/2020,Scholar Travel,Award Costs,Diversity Travel,PIN047676,28.4,
DFID,CSC,17/07/2020,Scholar Travel,Award Costs,Diversity Travel,PIN047676,21.4,
DFID,CSC,17/07/2020,Scholar Travel,Award Costs,Diversity Travel,PIN047676,21.1,
DFID,CSC,17/07/2020,Scholar Travel,Award Costs,Louise Ackers,PIN047677,1183.45,
DFID,CSC,17/07/2020,Scholar Travel,Award Costs,Louise Ackers,PIN047677,1183.45,
DFID,CSC,17/07/2020,Scholar Travel,Award Costs,Louise Ackers,PIN047677,1183.45,
DFID,CSC,17/07/2020,Scholar Travel,Award Costs,Louise Ackers,PIN047677,1183.45,
DFID,CSC,17/07/2020,Scholar Travel,Award Costs,Louise Ackers,PIN047677,1183.45,
DFID,CSC,17/07/2020,Scholar Travel,Award Costs,Louise Ackers,PIN047677,1183.45,
DFID,CSC,17/07/2020,Miscellaneous,Admin Costs,Crowe UK LLP,PIN047678,2520,
DFID,CSC,16/07/2020,Scholar Allowances,Award Costs,Scholar,PIN047680,2040,
DFID,CSC,16/07/2020,Scholar Stipend,Award Costs,Scholar,PIN047681,1219.4,
DFID,CSC,16/07/2020,Scholar Stipend,Award Costs,Scholar,PIN047681,130.6,
DFID,CSC,16/07/2020,Scholar Stipend,Award Costs,Scholar,PIN047682,510.55,
DFID,CSC,16/07/2020,Scholar Allowances,Award Costs,Scholar,PIN047683,1920,
DFID,CSC,24/07/2020,Scholar Allowances,Award Costs,University College London,PIN047684,1975,
DFID,CSC,24/07/2020,Scholar Travel,Award Costs,University College London,PIN047684,4102.94,
DFID,CSC,24/07/2020,Tuition Fee,Award Costs,University of Manchester,PIN047685,16400,
DFID,CSC,24/07/2020,Award Support Costs,Award Costs,The University of Salford,PIN047690,800,
DFID,CSC,24/07/2020,Award Support Costs,Award Costs,The University of Salford,PIN047690,3000,
DFID,CSC,24/07/2020,Scholar Engagement,Programme Costs,QUEEN ELIZABETH CENTRE,PIN047692,20121.6,
DFID,CSC,24/07/2020,Scholar Engagement,Programme Costs,Future Learn Limited,PIN047693,7764,
DFID,CSC,24/07/2020,Secretariat Service Provision,Admin Costs,Association of Commonwealth Univs,PIN047694,7500,
DFID,CSC,24/07/2020,Secretariat Service Provision,Programme Costs,Association of Commonwealth Univs,PIN047694,43200,
DFID,CSC,24/07/2020,Secretariat Service Provision,Programme Costs,Association of Commonwealth Univs,PIN047694,20400,
DFID,CSC,24/07/2020,Secretariat Service Provision,Admin Costs,Association of Commonwealth Univs,PIN047694,12000,
DFID,CSC,24/07/2020,Secretariat Service Provision,Programme Costs,Association of Commonwealth Univs,PIN047694,84000,
DFID,CSC,24/07/2020,Secretariat Service Provision,Programme Costs,Association of Commonwealth Univs,PIN047694,83700,
DFID,CSC,24/07/2020,Secretariat Service Provision,Programme Costs,Association of Commonwealth Univs,PIN047694,52800,
DFID,CSC,24/07/2020,Secretariat Service Provision,Admin Costs,Association of Commonwealth Univs,PIN047695,3000,
DFID,CSC,24/07/2020,Secretariat Service Provision,Admin Costs,Association of Commonwealth Univs,PIN047695,8850,
DFID,CSC,24/07/2020,Secretariat Service Provision,Admin Costs,Association of Commonwealth Univs,PIN047695,44250,
DFID,CSC,24/07/2020,Secretariat Service Provision,Programme Costs,Association of Commonwealth Univs,PIN047695,50000,
DFID,CSC,24/07/2020,Secretariat Service Provision,Programme Costs,Association of Commonwealth Univs,PIN047695,250000,
DFID,CSC,28/07/2020,Scholar Stipend,Award Costs,Scholar,PIN047696,1110,
DFID,CSC,28/07/2020,Scholar Stipend,Award Costs,Scholar,PIN047697,1110,
DFID,CSC,28/07/2020,Scholar Stipend,Award Costs,Scholar,PIN047698,1362,
DFID,CSC,28/07/2020,Scholar Stipend,Award Costs,Scholar,PIN047699,1110,
DFID,CSC,28/07/2020,Scholar Stipend,Award Costs,Scholar,PIN047700,1110,
DFID,CSC,28/07/2020,Scholar Stipend,Award Costs,Scholar,PIN047701,1110,
DFID,CSC,28/07/2020,Scholar Stipend,Award Costs,Scholar,PIN047702,1110,
DFID,CSC,28/07/2020,Scholar Stipend,Award Costs,Scholar,PIN047703,1362,
DFID,CSC,28/07/2020,Scholar Stipend,Award Costs,Scholar,PIN047704,1110,
DFID,CSC,28/07/2020,Scholar Stipend,Award Costs,Scholar,PIN047705,1110,
DFID,CSC,28/07/2020,Scholar Stipend,Award Costs,Scholar,PIN047706,1362,
DFID,CSC,28/07/2020,Scholar Stipend,Award Costs,Scholar,PIN047707,1110,
DFID,CSC,28/07/2020,Scholar Stipend,Award Costs,Scholar,PIN047708,1110,
DFID,CSC,28/07/2020,Scholar Stipend,Award Costs,Scholar,PIN047709,1110,
DFID,CSC,28/07/2020,Scholar Stipend,Award Costs,Scholar,PIN047710,1110,
DFID,CSC,28/07/2020,Scholar Stipend,Award Costs,Scholar,PIN047711,1110,
DFID,CSC,28/07/2020,Scholar Stipend,Award Costs,Scholar,PIN047712,1110,
DFID,CSC,28/07/2020,Scholar Stipend,Award Costs,Scholar,PIN047713,1110,
DFID,CSC,28/07/2020,Scholar Stipend,Award Costs,Scholar,PIN047714,1110,
DFID,CSC,28/07/2020,Scholar Stipend,Award Costs,Scholar,PIN047715,1362,
DFID,CSC,28/07/2020,Scholar Stipend,Award Costs,Scholar,PIN047716,1110,
DFID,CSC,28/07/2020,Scholar Stipend,Award Costs,Scholar,PIN047717,1110,
DFID,CSC,28/07/2020,Scholar Stipend,Award Costs,Scholar,PIN047718,1362,
DFID,CSC,28/07/2020,Scholar Stipend,Award Costs,Scholar,PIN047719,1110,
DFID,CSC,28/07/2020,Scholar Stipend,Award Costs,Scholar,PIN047720,1362,
DFID,CSC,28/07/2020,Scholar Stipend,Award Costs,Scholar,PIN047721,1110,
DFID,CSC,28/07/2020,Scholar Stipend,Award Costs,Scholar,PIN047722,1110,
DFID,CSC,28/07/2020,Scholar Stipend,Award Costs,Scholar,PIN047723,1110,
DFID,CSC,28/07/2020,Scholar Stipend,Award Costs,Scholar,PIN047724,1110,
DFID,CSC,28/07/2020,Scholar Stipend,Award Costs,Scholar,PIN047725,1362,
DFID,CSC,28/07/2020,Scholar Stipend,Award Costs,Scholar,PIN047726,1110,
DFID,CSC,28/07/2020,Scholar Stipend,Award Costs,Scholar,PIN047727,1110,
DFID,CSC,28/07/2020,Scholar Stipend,Award Costs,Scholar,PIN047728,1362,
DFID,CSC,28/07/2020,Scholar Stipend,Award Costs,Scholar,PIN047729,1362,
DFID,CSC,28/07/2020,Scholar Stipend,Award Costs,Scholar,PIN047730,1110,
DFID,CSC,28/07/2020,Scholar Stipend,Award Costs,Scholar,PIN047731,1110,
DFID,CSC,28/07/2020,Scholar Stipend,Award Costs,Scholar,PIN047732,1110,
DFID,CSC,28/07/2020,Scholar Stipend,Award Costs,Scholar,PIN047733,1110,
DFID,CSC,28/07/2020,Scholar Stipend,Award Costs,Scholar,PIN047734,1110,
DFID,CSC,28/07/2020,Scholar Stipend,Award Costs,Scholar,PIN047735,1110,
DFID,CSC,28/07/2020,Scholar Stipend,Award Costs,Scholar,PIN047736,510.55,
DFID,CSC,28/07/2020,Scholar Stipend,Award Costs,Scholar,PIN047737,1362,
DFID,CSC,28/07/2020,Scholar Stipend,Award Costs,Scholar,PIN047738,1110,
DFID,CSC,28/07/2020,Scholar Stipend,Award Costs,Scholar,PIN047739,1110,
DFID,CSC,28/07/2020,Scholar Stipend,Award Costs,Scholar,PIN047740,1362,
DFID,CSC,28/07/2020,Scholar Stipend,Award Costs,Scholar,PIN047741,1362,
DFID,CSC,28/07/2020,Scholar Stipend,Award Costs,Scholar,PIN047742,1110,
DFID,CSC,28/07/2020,Scholar Stipend,Award Costs,Scholar,PIN047743,1110,
DFID,CSC,28/07/2020,Scholar Stipend,Award Costs,Scholar,PIN047744,1110,
DFID,CSC,28/07/2020,Scholar Stipend,Award Costs,Scholar,PIN047745,1110,
DFID,CSC,28/07/2020,Scholar Stipend,Award Costs,Scholar,PIN047746,1110,
DFID,CSC,28/07/2020,Scholar Stipend,Award Costs,Scholar,PIN047747,1110,
DFID,CSC,28/07/2020,Scholar Stipend,Award Costs,Scholar,PIN047748,1110,
DFID,CSC,28/07/2020,Scholar Stipend,Award Costs,Scholar,PIN047749,1110,
DFID,CSC,28/07/2020,Scholar Stipend,Award Costs,Scholar,PIN047750,1110,
DFID,CSC,28/07/2020,Scholar Stipend,Award Costs,Scholar,PIN047751,1110,
DFID,CSC,28/07/2020,Scholar Stipend,Award Costs,Scholar,PIN047752,1110,
DFID,CSC,28/07/2020,Scholar Stipend,Award Costs,Scholar,PIN047753,1362,
DFID,CSC,28/07/2020,Scholar Stipend,Award Costs,Scholar,PIN047754,1110,
DFID,CSC,28/07/2020,Scholar Stipend,Award Costs,Scholar,PIN047755,1110,
DFID,CSC,28/07/2020,Scholar Stipend,Award Costs,Scholar,PIN047756,1110,
DFID,CSC,28/07/2020,Scholar Stipend,Award Costs,Scholar,PIN047757,1110,
DFID,CSC,28/07/2020,Scholar Stipend,Award Costs,Scholar,PIN047758,1362,
DFID,CSC,28/07/2020,Scholar Stipend,Award Costs,Scholar,PIN047759,1110,
DFID,CSC,28/07/2020,Scholar Stipend,Award Costs,Scholar,PIN047760,1110,
DFID,CSC,28/07/2020,Scholar Stipend,Award Costs,Scholar,PIN047761,1110,
DFID,CSC,28/07/2020,Scholar Stipend,Award Costs,Scholar,PIN047762,1110,
DFID,CSC,28/07/2020,Scholar Stipend,Award Costs,Scholar,PIN047763,1110,
DFID,CSC,28/07/2020,Scholar Stipend,Award Costs,Scholar,PIN047764,1110,
DFID,CSC,28/07/2020,Scholar Stipend,Award Costs,Scholar,PIN047765,1110,
DFID,CSC,28/07/2020,Scholar Stipend,Award Costs,Scholar,PIN047766,1110,
DFID,CSC,28/07/2020,Scholar Stipend,Award Costs,Scholar,PIN047767,1362,
DFID,CSC,28/07/2020,Scholar Stipend,Award Costs,Scholar,PIN047768,1110,
DFID,CSC,28/07/2020,Scholar Stipend,Award Costs,Scholar,PIN047769,1110,
DFID,CSC,28/07/2020,Scholar Stipend,Award Costs,Scholar,PIN047770,1110,
DFID,CSC,28/07/2020,Scholar Stipend,Award Costs,Scholar,PIN047771,1110,
DFID,CSC,28/07/2020,Scholar Stipend,Award Costs,Scholar,PIN047772,1110,
DFID,CSC,28/07/2020,Scholar Stipend,Award Costs,Scholar,PIN047773,1110,
DFID,CSC,28/07/2020,Scholar Stipend,Award Costs,Scholar,PIN047774,1110,
DFID,CSC,28/07/2020,Scholar Stipend,Award Costs,Scholar,PIN047775,1362,
DFID,CSC,28/07/2020,Scholar Stipend,Award Costs,Scholar,PIN047776,1110,
DFID,CSC,28/07/2020,Scholar Stipend,Award Costs,Scholar,PIN047777,1110,
DFID,CSC,28/07/2020,Scholar Stipend,Award Costs,Scholar,PIN047778,1110,
DFID,CSC,28/07/2020,Scholar Stipend,Award Costs,Scholar,PIN047779,1110,
DFID,CSC,28/07/2020,Scholar Stipend,Award Costs,Scholar,PIN047780,1110,
DFID,CSC,28/07/2020,Scholar Stipend,Award Costs,Scholar,PIN047781,1362,
DFID,CSC,28/07/2020,Scholar Stipend,Award Costs,Scholar,PIN047782,1110,
DFID,CSC,28/07/2020,Scholar Stipend,Award Costs,Scholar,PIN047783,1110,
DFID,CSC,28/07/2020,Scholar Stipend,Award Costs,Scholar,PIN047784,1110,
DFID,CSC,28/07/2020,Scholar Stipend,Award Costs,Scholar,PIN047785,1362,
DFID,CSC,28/07/2020,Scholar Stipend,Award Costs,Scholar,PIN047786,1110,
DFID,CSC,28/07/2020,Scholar Stipend,Award Costs,Scholar,PIN047787,1110,
DFID,CSC,28/07/2020,Scholar Stipend,Award Costs,Scholar,PIN047788,1362,
DFID,CSC,28/07/2020,Scholar Stipend,Award Costs,Scholar,PIN047789,1110,
DFID,CSC,28/07/2020,Scholar Stipend,Award Costs,Scholar,PIN047790,1110,
DFID,CSC,28/07/2020,Scholar Stipend,Award Costs,Scholar,PIN047791,1110,
DFID,CSC,28/07/2020,Scholar Stipend,Award Costs,Scholar,PIN047792,1110,
DFID,CSC,28/07/2020,Scholar Stipend,Award Costs,Scholar,PIN047793,1110,
DFID,CSC,28/07/2020,Scholar Stipend,Award Costs,Scholar,PIN047794,1362,
DFID,CSC,28/07/2020,Scholar Stipend,Award Costs,Scholar,PIN047795,1110,
DFID,CSC,28/07/2020,Scholar Stipend,Award Costs,Scholar,PIN047796,1362,
DFID,CSC,28/07/2020,Scholar Stipend,Award Costs,Scholar,PIN047797,1110,
DFID,CSC,28/07/2020,Scholar Stipend,Award Costs,Scholar,PIN047798,1110,
DFID,CSC,28/07/2020,Scholar Stipend,Award Costs,Scholar,PIN047799,1110,
DFID,CSC,28/07/2020,Scholar Stipend,Award Costs,Scholar,PIN047800,1362,
DFID,CSC,28/07/2020,Scholar Stipend,Award Costs,Scholar,PIN047801,1110,
DFID,CSC,28/07/2020,Scholar Stipend,Award Costs,Scholar,PIN047802,1110,
DFID,CSC,28/07/2020,Scholar Stipend,Award Costs,Scholar,PIN047803,1110,
DFID,CSC,28/07/2020,Scholar Stipend,Award Costs,Scholar,PIN047804,1110,
DFID,CSC,28/07/2020,Scholar Stipend,Award Costs,Scholar,PIN047805,1362,
DFID,CSC,28/07/2020,Scholar Stipend,Award Costs,Scholar,PIN047806,1110,
DFID,CSC,28/07/2020,Scholar Stipend,Award Costs,Scholar,PIN047807,1110,
DFID,CSC,28/07/2020,Scholar Stipend,Award Costs,Scholar,PIN047808,1362,
DFID,CSC,28/07/2020,Scholar Stipend,Award Costs,Scholar,PIN047809,1110,
DFID,CSC,28/07/2020,Scholar Stipend,Award Costs,Scholar,PIN047810,1110,
DFID,CSC,28/07/2020,Scholar Stipend,Award Costs,Scholar,PIN047811,1110,
DFID,CSC,28/07/2020,Scholar Stipend,Award Costs,Scholar,PIN047812,1110,
DFID,CSC,28/07/2020,Scholar Stipend,Award Costs,Scholar,PIN047813,1110,
DFID,CSC,28/07/2020,Scholar Stipend,Award Costs,Scholar,PIN047814,1110,
DFID,CSC,28/07/2020,Scholar Stipend,Award Costs,Scholar,PIN047815,1362,
DFID,CSC,28/07/2020,Scholar Stipend,Award Costs,Scholar,PIN047816,1110,
DFID,CSC,28/07/2020,Scholar Stipend,Award Costs,Scholar,PIN047817,1110,
DFID,CSC,28/07/2020,Scholar Stipend,Award Costs,Scholar,PIN047818,1110,
DFID,CSC,28/07/2020,Scholar Stipend,Award Costs,Scholar,PIN047819,1110,
DFID,CSC,28/07/2020,Scholar Stipend,Award Costs,Scholar,PIN047820,1110,
DFID,CSC,28/07/2020,Scholar Stipend,Award Costs,Scholar,PIN047821,1110,
DFID,CSC,28/07/2020,Scholar Stipend,Award Costs,Scholar,PIN047822,1110,
DFID,CSC,28/07/2020,Scholar Stipend,Award Costs,Scholar,PIN047823,1110,
DFID,CSC,28/07/2020,Scholar Stipend,Award Costs,Scholar,PIN047824,1110,
DFID,CSC,28/07/2020,Scholar Stipend,Award Costs,Scholar,PIN047825,1362,
DFID,CSC,28/07/2020,Scholar Stipend,Award Costs,Scholar,PIN047826,1362,
DFID,CSC,28/07/2020,Scholar Stipend,Award Costs,Scholar,PIN047827,1110,
DFID,CSC,28/07/2020,Scholar Stipend,Award Costs,Scholar,PIN047828,1110,
DFID,CSC,28/07/2020,Scholar Stipend,Award Costs,Scholar,PIN047829,1362,
DFID,CSC,28/07/2020,Scholar Stipend,Award Costs,Scholar,PIN047830,1362,
DFID,CSC,28/07/2020,Scholar Stipend,Award Costs,Scholar,PIN047831,1110,
DFID,CSC,28/07/2020,Scholar Stipend,Award Costs,Scholar,PIN047832,1362,
DFID,CSC,28/07/2020,Scholar Stipend,Award Costs,Scholar,PIN047833,1110,
DFID,CSC,28/07/2020,Scholar Stipend,Award Costs,Scholar,PIN047834,1110,
DFID,CSC,28/07/2020,Scholar Stipend,Award Costs,Scholar,PIN047835,555,
DFID,CSC,28/07/2020,Scholar Stipend,Award Costs,Scholar,PIN047836,1110,
DFID,CSC,28/07/2020,Scholar Stipend,Award Costs,Scholar,PIN047837,1362,
DFID,CSC,28/07/2020,Scholar Stipend,Award Costs,Scholar,PIN047838,1110,
DFID,CSC,28/07/2020,Scholar Stipend,Award Costs,Scholar,PIN047839,1362,
DFID,CSC,28/07/2020,Scholar Stipend,Award Costs,Scholar,PIN047840,1110,
DFID,CSC,28/07/2020,Scholar Stipend,Award Costs,Scholar,PIN047841,1110,
DFID,CSC,28/07/2020,Scholar Stipend,Award Costs,Scholar,PIN047842,1110,
DFID,CSC,28/07/2020,Scholar Stipend,Award Costs,Scholar,PIN047843,1110,
DFID,CSC,28/07/2020,Scholar Stipend,Award Costs,Scholar,PIN047844,1362,
DFID,CSC,28/07/2020,Scholar Stipend,Award Costs,Scholar,PIN047845,1110,
DFID,CSC,28/07/2020,Scholar Stipend,Award Costs,Scholar,PIN047846,1110,
DFID,CSC,28/07/2020,Scholar Stipend,Award Costs,Scholar,PIN047847,1110,
DFID,CSC,28/07/2020,Scholar Stipend,Award Costs,Scholar,PIN047848,1362,
DFID,CSC,28/07/2020,Scholar Stipend,Award Costs,Scholar,PIN047849,1110,
DFID,CSC,28/07/2020,Scholar Stipend,Award Costs,Scholar,PIN047850,1110,
DFID,CSC,28/07/2020,Scholar Stipend,Award Costs,Scholar,PIN047851,1110,
DFID,CSC,28/07/2020,Scholar Stipend,Award Costs,Scholar,PIN047852,1110,
DFID,CSC,28/07/2020,Scholar Stipend,Award Costs,Scholar,PIN047853,1110,
DFID,CSC,28/07/2020,Scholar Stipend,Award Costs,Scholar,PIN047854,1110,
DFID,CSC,28/07/2020,Scholar Stipend,Award Costs,Scholar,PIN047855,1110,
DFID,CSC,28/07/2020,Scholar Stipend,Award Costs,Scholar,PIN047856,1362,
DFID,CSC,28/07/2020,Scholar Stipend,Award Costs,Scholar,PIN047857,1110,
DFID,CSC,28/07/2020,Scholar Stipend,Award Costs,Scholar,PIN047858,1110,
DFID,CSC,28/07/2020,Scholar Stipend,Award Costs,Scholar,PIN047859,1110,
DFID,CSC,28/07/2020,Scholar Stipend,Award Costs,Scholar,PIN047860,1110,
DFID,CSC,28/07/2020,Scholar Stipend,Award Costs,Scholar,PIN047861,1110,
DFID,CSC,28/07/2020,Scholar Stipend,Award Costs,Scholar,PIN047862,1362,
DFID,CSC,28/07/2020,Scholar Stipend,Award Costs,Scholar,PIN047863,1110,
DFID,CSC,28/07/2020,Scholar Stipend,Award Costs,Scholar,PIN047864,1110,
DFID,CSC,28/07/2020,Scholar Stipend,Award Costs,Scholar,PIN047865,1362,
DFID,CSC,28/07/2020,Scholar Stipend,Award Costs,Scholar,PIN047866,1110,
DFID,CSC,28/07/2020,Scholar Stipend,Award Costs,Scholar,PIN047867,1362,
DFID,CSC,28/07/2020,Scholar Stipend,Programme Costs,Scholar,PIN047868,1110,
DFID,CSC,28/07/2020,Scholar Stipend,Award Costs,Scholar,PIN047869,1110,
DFID,CSC,28/07/2020,Scholar Stipend,Award Costs,Scholar,PIN047870,1362,
DFID,CSC,28/07/2020,Scholar Stipend,Award Costs,Scholar,PIN047871,1110,
DFID,CSC,28/07/2020,Scholar Stipend,Award Costs,Scholar,PIN047872,1110,
DFID,CSC,28/07/2020,Scholar Stipend,Award Costs,Scholar,PIN047873,1110,
DFID,CSC,28/07/2020,Scholar Stipend,Award Costs,Scholar,PIN047874,1110,
DFID,CSC,28/07/2020,Scholar Stipend,Award Costs,Scholar,PIN047875,1110,
DFID,CSC,28/07/2020,Scholar Stipend,Award Costs,Scholar,PIN047876,1110,
DFID,CSC,28/07/2020,Scholar Stipend,Award Costs,Scholar,PIN047877,1110,
DFID,CSC,28/07/2020,Scholar Stipend,Award Costs,Scholar,PIN047878,1110,
DFID,CSC,28/07/2020,Scholar Stipend,Award Costs,Scholar,PIN047879,1110,
DFID,CSC,28/07/2020,Scholar Stipend,Award Costs,Scholar,PIN047880,1362,
DFID,CSC,28/07/2020,Scholar Stipend,Award Costs,Scholar,PIN047881,1362,
DFID,CSC,28/07/2020,Scholar Stipend,Award Costs,Scholar,PIN047882,1110,
DFID,CSC,28/07/2020,Scholar Stipend,Award Costs,Scholar,PIN047883,1110,
DFID,CSC,28/07/2020,Scholar Stipend,Award Costs,Scholar,PIN047884,1110,
DFID,CSC,28/07/2020,Scholar Stipend,Award Costs,Scholar,PIN047885,1110,
DFID,CSC,28/07/2020,Scholar Stipend,Award Costs,Scholar,PIN047886,1110,
DFID,CSC,28/07/2020,Scholar Stipend,Award Costs,Scholar,PIN047887,1362,
DFID,CSC,28/07/2020,Scholar Stipend,Award Costs,Scholar,PIN047888,1110,
DFID,CSC,28/07/2020,Scholar Stipend,Award Costs,Scholar,PIN047889,1110,
DFID,CSC,28/07/2020,Scholar Stipend,Award Costs,Scholar,PIN047890,1110,
DFID,CSC,28/07/2020,Scholar Stipend,Award Costs,Scholar,PIN047891,1110,
DFID,CSC,28/07/2020,Scholar Stipend,Award Costs,Scholar,PIN047892,681,
DFID,CSC,28/07/2020,Scholar Stipend,Award Costs,Scholar,PIN047893,1110,
DFID,CSC,28/07/2020,Scholar Stipend,Award Costs,Scholar,PIN047894,1110,
DFID,CSC,28/07/2020,Scholar Stipend,Award Costs,Scholar,PIN047895,1362,
DFID,CSC,28/07/2020,Scholar Stipend,Award Costs,Scholar,PIN047896,1110,
DFID,CSC,28/07/2020,Scholar Stipend,Award Costs,Scholar,PIN047897,1110,
DFID,CSC,28/07/2020,Scholar Stipend,Award Costs,Scholar,PIN047898,1110,
DFID,CSC,28/07/2020,Scholar Stipend,Award Costs,Scholar,PIN047899,1110,
DFID,CSC,28/07/2020,Scholar Stipend,Award Costs,Scholar,PIN047900,1110,
DFID,CSC,28/07/2020,Scholar Stipend,Award Costs,Scholar,PIN047901,1110,
DFID,CSC,28/07/2020,Scholar Stipend,Award Costs,Scholar,PIN047902,1110,
DFID,CSC,28/07/2020,Scholar Stipend,Award Costs,Scholar,PIN047903,1110,
DFID,CSC,28/07/2020,Scholar Stipend,Award Costs,Scholar,PIN047904,1362,
DFID,CSC,28/07/2020,Scholar Stipend,Award Costs,Scholar,PIN047905,1110,
DFID,CSC,28/07/2020,Scholar Stipend,Award Costs,Scholar,PIN047906,1110,
DFID,CSC,28/07/2020,Scholar Stipend,Award Costs,Scholar,PIN047907,1110,
DFID,CSC,28/07/2020,Scholar Stipend,Award Costs,Scholar,PIN047908,1362,
DFID,CSC,28/07/2020,Scholar Stipend,Award Costs,Scholar,PIN047909,1362,
DFID,CSC,28/07/2020,Scholar Stipend,Award Costs,Scholar,PIN047910,1110,
DFID,CSC,28/07/2020,Scholar Stipend,Award Costs,Scholar,PIN047911,1110,
DFID,CSC,28/07/2020,Scholar Stipend,Award Costs,Scholar,PIN047912,1110,
DFID,CSC,28/07/2020,Scholar Stipend,Award Costs,Scholar,PIN047913,1110,
DFID,CSC,28/07/2020,Scholar Stipend,Award Costs,Scholar,PIN047914,1110,
DFID,CSC,28/07/2020,Scholar Stipend,Award Costs,Scholar,PIN047915,1110,
DFID,CSC,28/07/2020,Scholar Stipend,Award Costs,Scholar,PIN047916,1110,
DFID,CSC,28/07/2020,Scholar Stipend,Award Costs,Scholar,PIN047917,1110,
DFID,CSC,28/07/2020,Scholar Stipend,Award Costs,Scholar,PIN047918,1110,
DFID,CSC,28/07/2020,Scholar Stipend,Award Costs,Scholar,PIN047919,1110,
DFID,CSC,28/07/2020,Scholar Stipend,Award Costs,Scholar,PIN047920,1110,
DFID,CSC,28/07/2020,Scholar Stipend,Award Costs,Scholar,PIN047921,1110,
DFID,CSC,28/07/2020,Scholar Stipend,Award Costs,Scholar,PIN047922,1362,
DFID,CSC,28/07/2020,Scholar Stipend,Award Costs,Scholar,PIN047923,1110,
DFID,CSC,28/07/2020,Scholar Stipend,Award Costs,Scholar,PIN047924,1362,
DFID,CSC,28/07/2020,Scholar Stipend,Award Costs,Scholar,PIN047925,1110,
DFID,CSC,28/07/2020,Scholar Stipend,Award Costs,Scholar,PIN047926,1110,
DFID,CSC,28/07/2020,Scholar Stipend,Award Costs,Scholar,PIN047927,1110,
DFID,CSC,28/07/2020,Scholar Stipend,Award Costs,Scholar,PIN047928,1362,
DFID,CSC,28/07/2020,Scholar Stipend,Award Costs,Scholar,PIN047929,1110,
DFID,CSC,28/07/2020,Scholar Stipend,Award Costs,Scholar,PIN047930,1362,
DFID,CSC,28/07/2020,Scholar Stipend,Award Costs,Scholar,PIN047931,1362,
DFID,CSC,28/07/2020,Scholar Stipend,Award Costs,Scholar,PIN047932,1110,
DFID,CSC,28/07/2020,Scholar Stipend,Award Costs,Scholar,PIN047933,1110,
DFID,CSC,28/07/2020,Scholar Stipend,Award Costs,Scholar,PIN047934,1110,
DFID,CSC,28/07/2020,Scholar Stipend,Award Costs,Scholar,PIN047935,1110,
DFID,CSC,28/07/2020,Scholar Stipend,Award Costs,Scholar,PIN047936,1110,
DFID,CSC,28/07/2020,Scholar Stipend,Award Costs,Scholar,PIN047937,1110,
DFID,CSC,28/07/2020,Scholar Stipend,Award Costs,Scholar,PIN047938,1110,
DFID,CSC,28/07/2020,Scholar Stipend,Award Costs,Scholar,PIN047939,1110,
DFID,CSC,28/07/2020,Scholar Stipend,Award Costs,Scholar,PIN047940,1110,
DFID,CSC,28/07/2020,Scholar Stipend,Award Costs,Scholar,PIN047941,1110,
DFID,CSC,28/07/2020,Scholar Stipend,Award Costs,Scholar,PIN047942,1110,
DFID,CSC,28/07/2020,Scholar Stipend,Award Costs,Scholar,PIN047943,1110,
DFID,CSC,28/07/2020,Scholar Stipend,Award Costs,Scholar,PIN047944,1110,
DFID,CSC,28/07/2020,Scholar Stipend,Award Costs,Scholar,PIN047945,1110,
DFID,CSC,28/07/2020,Scholar Stipend,Award Costs,Scholar,PIN047946,1362,
DFID,CSC,28/07/2020,Scholar Stipend,Award Costs,Scholar,PIN047947,1362,
DFID,CSC,28/07/2020,Scholar Stipend,Award Costs,Scholar,PIN047948,1110,
DFID,CSC,28/07/2020,Scholar Stipend,Award Costs,Scholar,PIN047949,1110,
DFID,CSC,28/07/2020,Scholar Stipend,Award Costs,Scholar,PIN047950,1110,
DFID,CSC,28/07/2020,Scholar Stipend,Award Costs,Scholar,PIN047951,1110,
DFID,CSC,28/07/2020,Scholar Stipend,Award Costs,Scholar,PIN047952,1110,
DFID,CSC,28/07/2020,Scholar Stipend,Award Costs,Scholar,PIN047953,1110,
DFID,CSC,28/07/2020,Scholar Stipend,Award Costs,Scholar,PIN047954,1110,
DFID,CSC,28/07/2020,Scholar Stipend,Award Costs,Scholar,PIN047955,1362,
DFID,CSC,28/07/2020,Scholar Stipend,Award Costs,Scholar,PIN047956,1110,
DFID,CSC,28/07/2020,Scholar Stipend,Award Costs,Scholar,PIN047957,1110,
DFID,CSC,28/07/2020,Scholar Stipend,Award Costs,Scholar,PIN047958,1110,
DFID,CSC,28/07/2020,Scholar Stipend,Award Costs,Scholar,PIN047959,1110,
DFID,CSC,28/07/2020,Scholar Stipend,Award Costs,Scholar,PIN047960,1110,
DFID,CSC,28/07/2020,Scholar Stipend,Award Costs,Scholar,PIN047961,1110,
DFID,CSC,28/07/2020,Scholar Stipend,Award Costs,Scholar,PIN047962,1110,
DFID,CSC,28/07/2020,Scholar Stipend,Award Costs,Scholar,PIN047963,1362,
DFID,CSC,28/07/2020,Scholar Stipend,Award Costs,Scholar,PIN047964,1110,
DFID,CSC,28/07/2020,Scholar Stipend,Award Costs,Scholar,PIN047965,1110,
DFID,CSC,28/07/2020,Scholar Stipend,Award Costs,Scholar,PIN047966,1110,
DFID,CSC,28/07/2020,Scholar Stipend,Award Costs,Scholar,PIN047967,1110,
DFID,CSC,28/07/2020,Scholar Stipend,Award Costs,Scholar,PIN047968,1110,
DFID,CSC,28/07/2020,Scholar Stipend,Award Costs,Scholar,PIN047969,1110,
DFID,CSC,28/07/2020,Scholar Stipend,Award Costs,Scholar,PIN047970,1110,
DFID,CSC,28/07/2020,Scholar Stipend,Award Costs,Scholar,PIN047971,1362,
DFID,CSC,28/07/2020,Scholar Stipend,Award Costs,Scholar,PIN047972,1110,
DFID,CSC,28/07/2020,Scholar Stipend,Award Costs,Scholar,PIN047973,1362,
DFID,CSC,28/07/2020,Scholar Stipend,Award Costs,Scholar,PIN047974,1110,
DFID,CSC,28/07/2020,Scholar Stipend,Award Costs,Scholar,PIN047975,681,
DFID,CSC,28/07/2020,Scholar Stipend,Award Costs,Scholar,PIN047976,1110,
DFID,CSC,28/07/2020,Scholar Stipend,Award Costs,Scholar,PIN047977,1110,
DFID,CSC,28/07/2020,Scholar Stipend,Award Costs,Scholar,PIN047978,1362,
DFID,CSC,28/07/2020,Scholar Stipend,Award Costs,Scholar,PIN047979,1110,
DFID,CSC,28/07/2020,Scholar Stipend,Award Costs,Scholar,PIN047980,1110,
DFID,CSC,28/07/2020,Scholar Stipend,Award Costs,Scholar,PIN047981,1110,
DFID,CSC,28/07/2020,Scholar Stipend,Award Costs,Scholar,PIN047982,1110,
DFID,CSC,28/07/2020,Scholar Stipend,Award Costs,Scholar,PIN047983,1362,
DFID,CSC,28/07/2020,Scholar Stipend,Award Costs,Scholar,PIN047984,1110,
DFID,CSC,28/07/2020,Scholar Stipend,Award Costs,Scholar,PIN047985,1110,
DFID,CSC,28/07/2020,Scholar Stipend,Award Costs,Scholar,PIN047986,1110,
DFID,CSC,28/07/2020,Scholar Stipend,Award Costs,Scholar,PIN047987,1110,
DFID,CSC,28/07/2020,Scholar Stipend,Award Costs,Scholar,PIN047988,1110,
DFID,CSC,28/07/2020,Scholar Stipend,Award Costs,Scholar,PIN047989,1110,
DFID,CSC,28/07/2020,Scholar Stipend,Award Costs,Scholar,PIN047990,1110,
DFID,CSC,28/07/2020,Scholar Stipend,Award Costs,Scholar,PIN047991,1110,
DFID,CSC,28/07/2020,Scholar Stipend,Award Costs,Scholar,PIN047992,1110,
DFID,CSC,28/07/2020,Scholar Stipend,Award Costs,Scholar,PIN047993,1362,
DFID,CSC,28/07/2020,Scholar Stipend,Award Costs,Scholar,PIN047994,1110,
DFID,CSC,28/07/2020,Scholar Stipend,Award Costs,Scholar,PIN047995,1110,
DFID,CSC,28/07/2020,Scholar Stipend,Award Costs,Scholar,PIN047996,1110,
DFID,CSC,28/07/2020,Scholar Stipend,Award Costs,Scholar,PIN047997,1110,
DFID,CSC,28/07/2020,Scholar Stipend,Award Costs,Scholar,PIN047998,1110,
DFID,CSC,28/07/2020,Scholar Stipend,Award Costs,Scholar,PIN047999,1362,
DFID,CSC,28/07/2020,Scholar Stipend,Award Costs,Scholar,PIN048000,1110,
DFID,CSC,28/07/2020,Scholar Stipend,Award Costs,Scholar,PIN048001,1110,
DFID,CSC,28/07/2020,Scholar Stipend,Award Costs,Scholar,PIN048002,1110,
DFID,CSC,28/07/2020,Scholar Stipend,Award Costs,Scholar,PIN048003,1110,
DFID,CSC,28/07/2020,Scholar Stipend,Award Costs,Scholar,PIN048004,1110,
DFID,CSC,28/07/2020,Scholar Stipend,Award Costs,Scholar,PIN048005,1110,
DFID,CSC,28/07/2020,Scholar Stipend,Award Costs,Scholar,PIN048006,1362,
DFID,CSC,28/07/2020,Scholar Stipend,Award Costs,Scholar,PIN048007,1110,
DFID,CSC,28/07/2020,Scholar Stipend,Award Costs,Scholar,PIN048008,1110,
DFID,CSC,28/07/2020,Scholar Stipend,Award Costs,Scholar,PIN048009,1362,
DFID,CSC,28/07/2020,Scholar Stipend,Award Costs,Scholar,PIN048010,1110,
DFID,CSC,28/07/2020,Scholar Stipend,Award Costs,Scholar,PIN048011,1110,
DFID,CSC,28/07/2020,Scholar Stipend,Award Costs,Scholar,PIN048012,1110,
DFID,CSC,28/07/2020,Scholar Stipend,Award Costs,Scholar,PIN048013,1110,
DFID,CSC,28/07/2020,Scholar Stipend,Award Costs,Scholar,PIN048014,1362,
DFID,CSC,28/07/2020,Scholar Stipend,Award Costs,Scholar,PIN048015,1110,
DFID,CSC,28/07/2020,Scholar Stipend,Award Costs,Scholar,PIN048016,1362,
DFID,CSC,28/07/2020,Scholar Stipend,Award Costs,Scholar,PIN048017,1110,
DFID,CSC,28/07/2020,Scholar Stipend,Award Costs,Scholar,PIN048018,1362,
DFID,CSC,28/07/2020,Scholar Stipend,Award Costs,Scholar,PIN048019,1110,
DFID,CSC,28/07/2020,Scholar Stipend,Award Costs,Scholar,PIN048020,1110,
DFID,CSC,28/07/2020,Scholar Stipend,Award Costs,Scholar,PIN048021,1110,
DFID,CSC,28/07/2020,Scholar Stipend,Award Costs,Scholar,PIN048022,1362,
DFID,CSC,28/07/2020,Scholar Stipend,Award Costs,Scholar,PIN048023,1110,
DFID,CSC,28/07/2020,Scholar Stipend,Award Costs,Scholar,PIN048024,1110,
DFID,CSC,28/07/2020,Scholar Stipend,Award Costs,Scholar,PIN048025,1362,
DFID,CSC,28/07/2020,Scholar Stipend,Award Costs,Scholar,PIN048026,1110,
DFID,CSC,28/07/2020,Scholar Stipend,Award Costs,Scholar,PIN048027,1110,
DFID,CSC,28/07/2020,Scholar Stipend,Award Costs,Scholar,PIN048028,1362,
DFID,CSC,28/07/2020,Scholar Stipend,Award Costs,Scholar,PIN048029,1362,
DFID,CSC,28/07/2020,Scholar Stipend,Award Costs,Scholar,PIN048031,1110,
DFID,CSC,28/07/2020,Scholar Stipend,Award Costs,Scholar,PIN048032,1110,
DFID,CSC,28/07/2020,Scholar Stipend,Award Costs,Scholar,PIN048033,1110,
DFID,CSC,28/07/2020,Scholar Stipend,Award Costs,Scholar,PIN048034,1362,
DFID,CSC,28/07/2020,Scholar Stipend,Award Costs,Scholar,PIN048035,1110,
DFID,CSC,28/07/2020,Scholar Stipend,Award Costs,Scholar,PIN048036,1110,
DFID,CSC,28/07/2020,Scholar Stipend,Award Costs,Scholar,PIN048037,1110,
DFID,CSC,28/07/2020,Scholar Stipend,Award Costs,Scholar,PIN048038,1362,
DFID,CSC,28/07/2020,Scholar Stipend,Award Costs,Scholar,PIN048039,1110,
DFID,CSC,28/07/2020,Scholar Stipend,Award Costs,Scholar,PIN048040,1110,
DFID,CSC,28/07/2020,Scholar Stipend,Award Costs,Scholar,PIN048041,1110,
DFID,CSC,28/07/2020,Scholar Stipend,Award Costs,Scholar,PIN048042,1110,
DFID,CSC,28/07/2020,Scholar Stipend,Award Costs,Scholar,PIN048043,1362,
DFID,CSC,28/07/2020,Scholar Stipend,Award Costs,Scholar,PIN048044,1110,
DFID,CSC,28/07/2020,Scholar Stipend,Award Costs,Scholar,PIN048045,1110,
DFID,CSC,28/07/2020,Scholar Stipend,Award Costs,Scholar,PIN048046,1110,
DFID,CSC,28/07/2020,Scholar Stipend,Award Costs,Scholar,PIN048047,1110,
DFID,CSC,28/07/2020,Scholar Stipend,Award Costs,Scholar,PIN048048,1362,
DFID,CSC,28/07/2020,Scholar Stipend,Award Costs,Scholar,PIN048049,1110,
DFID,CSC,28/07/2020,Scholar Stipend,Award Costs,Scholar,PIN048050,1362,
DFID,CSC,28/07/2020,Scholar Stipend,Award Costs,Scholar,PIN048051,1110,
DFID,CSC,28/07/2020,Scholar Stipend,Award Costs,Scholar,PIN048052,1110,
DFID,CSC,28/07/2020,Scholar Stipend,Award Costs,Scholar,PIN048053,1110,
DFID,CSC,28/07/2020,Scholar Stipend,Award Costs,Scholar,PIN048054,1362,
DFID,CSC,28/07/2020,Scholar Stipend,Award Costs,Scholar,PIN048055,1110,
DFID,CSC,28/07/2020,Scholar Stipend,Award Costs,Scholar,PIN048056,1110,
DFID,CSC,28/07/2020,Scholar Stipend,Award Costs,Scholar,PIN048057,1110,
DFID,CSC,28/07/2020,Scholar Stipend,Award Costs,Scholar,PIN048058,1110,
DFID,CSC,28/07/2020,Scholar Stipend,Award Costs,Scholar,PIN048059,1362,
DFID,CSC,28/07/2020,Scholar Stipend,Award Costs,Scholar,PIN048060,1110,
DFID,CSC,28/07/2020,Scholar Stipend,Award Costs,Scholar,PIN048061,1110,
DFID,CSC,28/07/2020,Scholar Stipend,Award Costs,Scholar,PIN048062,1110,
DFID,CSC,28/07/2020,Scholar Stipend,Award Costs,Scholar,PIN048063,1110,
DFID,CSC,28/07/2020,Scholar Stipend,Award Costs,Scholar,PIN048064,1110,
DFID,CSC,28/07/2020,Scholar Stipend,Award Costs,Scholar,PIN048065,1110,
DFID,CSC,28/07/2020,Scholar Stipend,Award Costs,Scholar,PIN048066,1362,
DFID,CSC,28/07/2020,Scholar Stipend,Award Costs,Scholar,PIN048067,1362,
DFID,CSC,28/07/2020,Scholar Stipend,Award Costs,Scholar,PIN048068,1110,
DFID,CSC,28/07/2020,Scholar Stipend,Award Costs,Scholar,PIN048069,1110,
DFID,CSC,28/07/2020,Scholar Stipend,Award Costs,Scholar,PIN048070,1110,
DFID,CSC,28/07/2020,Scholar Stipend,Award Costs,Scholar,PIN048071,1362,
DFID,CSC,28/07/2020,Scholar Stipend,Award Costs,Scholar,PIN048072,1110,
DFID,CSC,28/07/2020,Scholar Stipend,Award Costs,Scholar,PIN048073,1110,
DFID,CSC,28/07/2020,Scholar Stipend,Award Costs,Scholar,PIN048074,1110,
DFID,CSC,28/07/2020,Scholar Stipend,Award Costs,Scholar,PIN048075,1110,
DFID,CSC,28/07/2020,Scholar Stipend,Award Costs,Scholar,PIN048076,1110,
DFID,CSC,28/07/2020,Scholar Stipend,Award Costs,Scholar,PIN048077,1110,
DFID,CSC,28/07/2020,Scholar Stipend,Award Costs,Scholar,PIN048078,1110,
DFID,CSC,28/07/2020,Scholar Stipend,Award Costs,Scholar,PIN048079,1110,
DFID,CSC,28/07/2020,Scholar Stipend,Award Costs,Scholar,PIN048080,1110,
DFID,CSC,28/07/2020,Scholar Stipend,Award Costs,Scholar,PIN048081,1110,
DFID,CSC,28/07/2020,Scholar Stipend,Award Costs,Scholar,PIN048082,1362,
DFID,CSC,28/07/2020,Scholar Stipend,Award Costs,Scholar,PIN048083,1110,
DFID,CSC,28/07/2020,Scholar Stipend,Award Costs,Scholar,PIN048084,1110,
DFID,CSC,28/07/2020,Scholar Stipend,Award Costs,Scholar,PIN048085,1110,
DFID,CSC,28/07/2020,Scholar Stipend,Award Costs,Scholar,PIN048087,1110,
DFID,CSC,28/07/2020,Scholar Stipend,Award Costs,Scholar,PIN048088,1110,
DFID,CSC,28/07/2020,Scholar Allowances,Award Costs,Scholar,PIN048089,1110,
DFID,CSC,28/07/2020,Scholar Allowances,Award Costs,Scholar,PIN048090,1000.6,
DFID,CSC,28/07/2020,Scholar Allowances,Award Costs,Scholar,PIN048095,545.51,
DFID,CSC,28/07/2020,Scholar Allowances,Award Costs,Scholar,PIN048123,710,
DFID,CSC,28/07/2020,Scholar Allowances,Award Costs,Scholar,PIN048147,593,
DFID,CSC,28/07/2020,Scholar Stipend,Award Costs,Scholar,PIN048229,1110,
DFID,CSC,28/07/2020,Scholar Stipend,Award Costs,Scholar,PIN048230,1362,
DFID,CSC,28/07/2020,Scholar Stipend,Award Costs,Scholar,PIN048231,1110,
DFID,CSC,28/07/2020,Scholar Stipend,Award Costs,Scholar,PIN048232,1110,
DFID,CSC,28/07/2020,Scholar Stipend,Award Costs,Scholar,PIN048233,1110,
DFID,CSC,28/07/2020,Scholar Stipend,Award Costs,Scholar,PIN048234,1110,
DFID,CSC,28/07/2020,Scholar Stipend,Award Costs,Scholar,PIN048235,1362,
DFID,CSC,28/07/2020,Scholar Stipend,Award Costs,Scholar,PIN048236,1110,
DFID,CSC,28/07/2020,Scholar Stipend,Award Costs,Scholar,PIN048237,729.36,
DFID,CSC,28/07/2020,Scholar Stipend,Award Costs,Scholar,PIN048238,1110,
DFID,CSC,28/07/2020,Scholar Stipend,Award Costs,Scholar,PIN048239,1110,
DFID,CSC,28/07/2020,Scholar Stipend,Award Costs,Scholar,PIN048240,1110,
DFID,CSC,28/07/2020,Scholar Stipend,Award Costs,Scholar,PIN048241,1110,
DFID,CSC,28/07/2020,Scholar Stipend,Award Costs,Scholar,PIN048242,1110,
DFID,CSC,28/07/2020,Scholar Stipend,Award Costs,Scholar,PIN048243,1362,
DFID,CSC,28/07/2020,Scholar Stipend,Award Costs,Scholar,PIN048244,1110,
DFID,CSC,28/07/2020,Scholar Stipend,Award Costs,Scholar,PIN048245,1362,
DFID,CSC,28/07/2020,Scholar Stipend,Award Costs,Scholar,PIN048246,1110,
DFID,CSC,28/07/2020,Scholar Stipend,Award Costs,Scholar,PIN048247,1110,
DFID,CSC,28/07/2020,Scholar Stipend,Award Costs,Scholar,PIN048248,1110,
DFID,CSC,28/07/2020,Scholar Stipend,Award Costs,Scholar,PIN048249,1110,
DFID,CSC,28/07/2020,Scholar Stipend,Award Costs,Scholar,PIN048250,547.02,
DFID,CSC,28/07/2020,Scholar Stipend,Award Costs,Scholar,PIN048251,1110,
DFID,CSC,28/07/2020,Scholar Stipend,Award Costs,Scholar,PIN048252,1110,
DFID,CSC,28/07/2020,Scholar Stipend,Award Costs,Scholar,PIN048253,1110,
DFID,CSC,28/07/2020,Scholar Stipend,Award Costs,Scholar,PIN048254,1110,
DFID,CSC,28/07/2020,Scholar Stipend,Award Costs,Scholar,PIN048255,1110,
DFID,CSC,28/07/2020,Scholar Stipend,Award Costs,Scholar,PIN048256,1110,
DFID,CSC,28/07/2020,Scholar Stipend,Award Costs,Scholar,PIN048257,1110,
DFID,CSC,28/07/2020,Scholar Stipend,Award Costs,Scholar,PIN048258,1110,
DFID,CSC,28/07/2020,Scholar Stipend,Award Costs,Scholar,PIN048259,1110,
DFID,CSC,28/07/2020,Scholar Stipend,Award Costs,Scholar,PIN048260,1110,
DFID,CSC,28/07/2020,Scholar Stipend,Award Costs,Scholar,PIN048261,1110,
DFID,CSC,28/07/2020,Scholar Stipend,Award Costs,Scholar,PIN048262,1110,
DFID,CSC,28/07/2020,Scholar Stipend,Award Costs,Scholar,PIN048263,1362,
DFID,CSC,28/07/2020,Scholar Stipend,Award Costs,Scholar,PIN048264,1110,
DFID,CSC,28/07/2020,Scholar Stipend,Award Costs,Scholar,PIN048265,1110,
DFID,CSC,28/07/2020,Scholar Stipend,Award Costs,Scholar,PIN048266,1110,
DFID,CSC,28/07/2020,Scholar Stipend,Award Costs,Scholar,PIN048267,1110,
DFID,CSC,28/07/2020,Scholar Stipend,Award Costs,Scholar,PIN048268,1110,
DFID,CSC,28/07/2020,Scholar Stipend,Award Costs,Scholar,PIN048269,1110,
DFID,CSC,28/07/2020,Scholar Stipend,Award Costs,Scholar,PIN048270,1110,
DFID,CSC,28/07/2020,Scholar Stipend,Award Costs,Scholar,PIN048271,1110,
DFID,CSC,28/07/2020,Scholar Stipend,Award Costs,Scholar,PIN048272,1110,
DFID,CSC,28/07/2020,Scholar Stipend,Award Costs,Scholar,PIN048273,1110,
DFID,CSC,28/07/2020,Scholar Stipend,Award Costs,Scholar,PIN048274,1110,
DFID,CSC,28/07/2020,Scholar Stipend,Award Costs,Scholar,PIN048275,1362,
DFID,CSC,28/07/2020,Scholar Stipend,Award Costs,Scholar,PIN048276,1110,
DFID,CSC,28/07/2020,Scholar Stipend,Award Costs,Scholar,PIN048277,1110,
DFID,CSC,28/07/2020,Scholar Stipend,Award Costs,Scholar,PIN048278,1110,
DFID,CSC,28/07/2020,Scholar Stipend,Award Costs,Scholar,PIN048279,1110,
DFID,CSC,28/07/2020,Scholar Stipend,Award Costs,Scholar,PIN048280,1362,
DFID,CSC,28/07/2020,Scholar Stipend,Award Costs,Scholar,PIN048281,1110,
DFID,CSC,28/07/2020,Scholar Stipend,Award Costs,Scholar,PIN048282,1110,
DFID,CSC,28/07/2020,Scholar Stipend,Award Costs,Scholar,PIN048283,1110,
DFID,CSC,28/07/2020,Scholar Stipend,Award Costs,Scholar,PIN048284,1110,
DFID,CSC,28/07/2020,Scholar Stipend,Award Costs,Scholar,PIN048285,1110,
DFID,CSC,28/07/2020,Scholar Stipend,Award Costs,Scholar,PIN048286,1362,
DFID,CSC,28/07/2020,Scholar Stipend,Award Costs,Scholar,PIN048287,1110,
DFID,CSC,28/07/2020,Scholar Stipend,Award Costs,Scholar,PIN048288,1110,
DFID,CSC,28/07/2020,Scholar Stipend,Award Costs,Scholar,PIN048289,1110,
DFID,CSC,28/07/2020,Scholar Stipend,Award Costs,Scholar,PIN048290,1110,
DFID,CSC,28/07/2020,Scholar Stipend,Award Costs,Scholar,PIN048291,1110,
DFID,CSC,28/07/2020,Scholar Stipend,Award Costs,Scholar,PIN048292,547.02,
DFID,CSC,28/07/2020,Scholar Stipend,Award Costs,Scholar,PIN048293,1110,
DFID,CSC,28/07/2020,Scholar Stipend,Award Costs,Scholar,PIN048294,1110,
DFID,CSC,28/07/2020,Scholar Stipend,Award Costs,Scholar,PIN048295,1362,
DFID,CSC,28/07/2020,Scholar Stipend,Award Costs,Scholar,PIN048296,1110,
DFID,CSC,28/07/2020,Scholar Stipend,Award Costs,Scholar,PIN048297,1110,
DFID,CSC,28/07/2020,Scholar Stipend,Award Costs,Scholar,PIN048298,1110,
DFID,CSC,28/07/2020,Scholar Stipend,Award Costs,Scholar,PIN048299,1110,
DFID,CSC,28/07/2020,Scholar Stipend,Award Costs,Scholar,PIN048300,1110,
DFID,CSC,28/07/2020,Scholar Stipend,Award Costs,Scholar,PIN048301,1362,
DFID,CSC,28/07/2020,Scholar Stipend,Award Costs,Scholar,PIN048302,1110,
DFID,CSC,28/07/2020,Scholar Stipend,Award Costs,Scholar,PIN048303,1110,
DFID,CSC,28/07/2020,Scholar Stipend,Award Costs,Scholar,PIN048304,1110,
DFID,CSC,28/07/2020,Scholar Stipend,Award Costs,Scholar,PIN048305,1110,
DFID,CSC,28/07/2020,Scholar Stipend,Award Costs,Scholar,PIN048307,1110,
DFID,CSC,28/07/2020,Scholar Stipend,Award Costs,Scholar,PIN048308,1110,
DFID,CSC,28/07/2020,Scholar Stipend,Award Costs,Scholar,PIN048309,536.97,
DFID,CSC,28/07/2020,Scholar Stipend,Award Costs,Scholar,PIN048310,1110,
DFID,CSC,28/07/2020,Scholar Stipend,Award Costs,Scholar,PIN048311,1110,
DFID,CSC,28/07/2020,Scholar Stipend,Award Costs,Scholar,PIN048312,1110,
DFID,CSC,28/07/2020,Scholar Stipend,Award Costs,Scholar,PIN048313,1362,
DFID,CSC,28/07/2020,Scholar Stipend,Award Costs,Scholar,PIN048314,1110,
DFID,CSC,28/07/2020,Scholar Stipend,Award Costs,Scholar,PIN048315,1110,
DFID,CSC,28/07/2020,Scholar Stipend,Award Costs,Scholar,PIN048316,1110,
DFID,CSC,28/07/2020,Scholar Stipend,Award Costs,Scholar,PIN048317,1110,
DFID,CSC,28/07/2020,Scholar Stipend,Award Costs,Scholar,PIN048318,1110,
DFID,CSC,28/07/2020,Scholar Stipend,Award Costs,Scholar,PIN048319,1110,
DFID,CSC,28/07/2020,Scholar Stipend,Award Costs,Scholar,PIN048320,1362,
DFID,CSC,28/07/2020,Scholar Stipend,Award Costs,Scholar,PIN048321,1110,
DFID,CSC,28/07/2020,Scholar Stipend,Award Costs,Scholar,PIN048322,939.7,
DFID,CSC,28/07/2020,Scholar Stipend,Award Costs,Scholar,PIN048323,1362,
DFID,CSC,28/07/2020,Scholar Stipend,Programme Costs,Scholar,PIN048324,1110,
DFID,CSC,28/07/2020,Scholar Stipend,Award Costs,Scholar,PIN048325,1110,
DFID,CSC,28/07/2020,Scholar Stipend,Award Costs,Scholar,PIN048326,1362,
DFID,CSC,28/07/2020,Scholar Stipend,Award Costs,Scholar,PIN048327,1110,
DFID,CSC,28/07/2020,Scholar Stipend,Award Costs,Scholar,PIN048328,1110,
DFID,CSC,28/07/2020,Scholar Stipend,Award Costs,Scholar,PIN048329,1110,
DFID,CSC,28/07/2020,Scholar Stipend,Award Costs,Scholar,PIN048330,1110,
DFID,CSC,28/07/2020,Scholar Stipend,Award Costs,Scholar,PIN048331,1110,
DFID,CSC,28/07/2020,Scholar Stipend,Award Costs,Scholar,PIN048332,1110,
DFID,CSC,28/07/2020,Scholar Stipend,Award Costs,Scholar,PIN048333,1110,
DFID,CSC,28/07/2020,Scholar Stipend,Award Costs,Scholar,PIN048334,1362,
DFID,CSC,28/07/2020,Scholar Stipend,Award Costs,Scholar,PIN048335,1362,
DFID,CSC,28/07/2020,Scholar Stipend,Award Costs,Scholar,PIN048336,1110,
DFID,CSC,28/07/2020,Scholar Stipend,Award Costs,Scholar,PIN048337,1110,
DFID,CSC,28/07/2020,Scholar Stipend,Award Costs,Scholar,PIN048338,681,
DFID,CSC,28/07/2020,Scholar Stipend,Award Costs,Scholar,PIN048339,1110,
DFID,CSC,28/07/2020,Scholar Stipend,Award Costs,Scholar,PIN048340,1110,
DFID,CSC,28/07/2020,Scholar Stipend,Award Costs,Scholar,PIN048341,583.49,
DFID,CSC,28/07/2020,Scholar Stipend,Award Costs,Scholar,PIN048342,1110,
DFID,CSC,28/07/2020,Scholar Stipend,Award Costs,Scholar,PIN048343,1110,
DFID,CSC,28/07/2020,Scholar Stipend,Award Costs,Scholar,PIN048344,1362,
DFID,CSC,28/07/2020,Scholar Stipend,Award Costs,Scholar,PIN048345,1110,
DFID,CSC,28/07/2020,Scholar Stipend,Award Costs,Scholar,PIN048346,1110,
DFID,CSC,28/07/2020,Scholar Stipend,Award Costs,Scholar,PIN048347,1110,
DFID,CSC,28/07/2020,Scholar Stipend,Award Costs,Scholar,PIN048348,1362,
DFID,CSC,28/07/2020,Scholar Stipend,Award Costs,Scholar,PIN048349,1110,
DFID,CSC,28/07/2020,Scholar Stipend,Award Costs,Scholar,PIN048350,1110,
DFID,CSC,28/07/2020,Scholar Stipend,Award Costs,Scholar,PIN048351,1110,
DFID,CSC,28/07/2020,Scholar Stipend,Award Costs,Scholar,PIN048352,1110,
DFID,CSC,28/07/2020,Scholar Stipend,Award Costs,Scholar,PIN048353,1110,
DFID,CSC,28/07/2020,Scholar Stipend,Award Costs,Scholar,PIN048354,1110,
DFID,CSC,28/07/2020,Scholar Stipend,Award Costs,Scholar,PIN048355,1110,
DFID,CSC,28/07/2020,Scholar Stipend,Award Costs,Scholar,PIN048356,1362,
DFID,CSC,28/07/2020,Scholar Stipend,Award Costs,Scholar,PIN048357,1110,
DFID,CSC,28/07/2020,Scholar Stipend,Award Costs,Scholar,PIN048358,1110,
DFID,CSC,28/07/2020,Scholar Stipend,Award Costs,Scholar,PIN048359,1110,
DFID,CSC,28/07/2020,Scholar Stipend,Award Costs,Scholar,PIN048360,1110,
DFID,CSC,28/07/2020,Scholar Stipend,Award Costs,Scholar,PIN048361,1362,
DFID,CSC,28/07/2020,Scholar Stipend,Award Costs,Scholar,PIN048362,1110,
DFID,CSC,28/07/2020,Scholar Stipend,Award Costs,Scholar,PIN048363,1110,
DFID,CSC,28/07/2020,Scholar Stipend,Award Costs,Scholar,PIN048364,1110,
DFID,CSC,28/07/2020,Scholar Stipend,Award Costs,Scholar,PIN048365,1110,
DFID,CSC,28/07/2020,Scholar Stipend,Award Costs,Scholar,PIN048366,1110,
DFID,CSC,28/07/2020,Scholar Stipend,Award Costs,Scholar,PIN048367,1110,
DFID,CSC,28/07/2020,Scholar Stipend,Award Costs,Scholar,PIN048368,1110,
DFID,CSC,28/07/2020,Scholar Stipend,Award Costs,Scholar,PIN048369,1362,
DFID,CSC,28/07/2020,Scholar Stipend,Award Costs,Scholar,PIN048370,1110,
DFID,CSC,28/07/2020,Scholar Stipend,Award Costs,Scholar,PIN048371,1110,
DFID,CSC,28/07/2020,Scholar Stipend,Award Costs,Scholar,PIN048372,1110,
DFID,CSC,28/07/2020,Scholar Stipend,Award Costs,Scholar,PIN048373,1110,
DFID,CSC,28/07/2020,Scholar Stipend,Award Costs,Scholar,PIN048374,1110,
DFID,CSC,28/07/2020,Scholar Stipend,Award Costs,Scholar,PIN048375,656.43,
DFID,CSC,28/07/2020,Scholar Stipend,Award Costs,Scholar,PIN048376,1110,
DFID,CSC,28/07/2020,Scholar Stipend,Award Costs,Scholar,PIN048377,1110,
DFID,CSC,28/07/2020,Scholar Stipend,Award Costs,Scholar,PIN048378,1110,
DFID,CSC,28/07/2020,Scholar Stipend,Award Costs,Scholar,PIN048379,1110,
DFID,CSC,28/07/2020,Scholar Stipend,Award Costs,Scholar,PIN048380,1110,
DFID,CSC,28/07/2020,Scholar Stipend,Award Costs,Scholar,PIN048381,583.49,
DFID,CSC,28/07/2020,Scholar Stipend,Award Costs,Scholar,PIN048382,1208.18,
DFID,CSC,28/07/2020,Scholar Stipend,Award Costs,Scholar,PIN048383,1110,
DFID,CSC,28/07/2020,Scholar Stipend,Award Costs,Scholar,PIN048384,1362,
DFID,CSC,28/07/2020,Scholar Stipend,Award Costs,Scholar,PIN048385,681,
DFID,CSC,28/07/2020,Scholar Stipend,Award Costs,Scholar,PIN048386,1110,
DFID,CSC,28/07/2020,Scholar Stipend,Award Costs,Scholar,PIN048387,1110,
DFID,CSC,28/07/2020,Scholar Stipend,Award Costs,Scholar,PIN048388,1110,
DFID,CSC,28/07/2020,Scholar Stipend,Award Costs,Scholar,PIN048389,1110,
DFID,CSC,28/07/2020,Scholar Stipend,Award Costs,Scholar,PIN048390,1362,
DFID,CSC,28/07/2020,Scholar Stipend,Award Costs,Scholar,PIN048391,1110,
DFID,CSC,28/07/2020,Scholar Stipend,Award Costs,Scholar,PIN048392,1110,
DFID,CSC,28/07/2020,Scholar Stipend,Award Costs,Scholar,PIN048393,1110,
DFID,CSC,28/07/2020,Scholar Stipend,Award Costs,Scholar,PIN048394,1110,
DFID,CSC,28/07/2020,Scholar Stipend,Award Costs,Scholar,PIN048395,1110,
DFID,CSC,28/07/2020,Scholar Stipend,Award Costs,Scholar,PIN048396,1362,
DFID,CSC,28/07/2020,Scholar Stipend,Award Costs,Scholar,PIN048397,1110,
DFID,CSC,28/07/2020,Scholar Stipend,Award Costs,Scholar,PIN048398,1110,
DFID,CSC,28/07/2020,Scholar Stipend,Award Costs,Scholar,PIN048399,1362,
DFID,CSC,28/07/2020,Scholar Stipend,Award Costs,Scholar,PIN048400,1110,
DFID,CSC,28/07/2020,Scholar Stipend,Award Costs,Scholar,PIN048401,1110,
DFID,CSC,28/07/2020,Scholar Stipend,Award Costs,Scholar,PIN048402,1110,
DFID,CSC,28/07/2020,Scholar Stipend,Award Costs,Scholar,PIN048403,1362,
DFID,CSC,28/07/2020,Scholar Stipend,Award Costs,Scholar,PIN048404,1110,
DFID,CSC,28/07/2020,Scholar Stipend,Award Costs,Scholar,PIN048405,1110,
DFID,CSC,28/07/2020,Scholar Stipend,Award Costs,Scholar,PIN048406,1362,
DFID,CSC,28/07/2020,Scholar Stipend,Award Costs,Scholar,PIN048407,1362,
DFID,CSC,28/07/2020,Scholar Stipend,Award Costs,Scholar,PIN048408,1110,
DFID,CSC,28/07/2020,Scholar Stipend,Award Costs,Scholar,PIN048409,1110,
DFID,CSC,28/07/2020,Scholar Stipend,Award Costs,Scholar,PIN048410,1362,
DFID,CSC,28/07/2020,Scholar Stipend,Award Costs,Scholar,PIN048411,1110,
DFID,CSC,28/07/2020,Scholar Stipend,Award Costs,Scholar,PIN048412,1110,
DFID,CSC,28/07/2020,Scholar Stipend,Award Costs,Scholar,PIN048413,1110,
DFID,CSC,28/07/2020,Scholar Stipend,Award Costs,Scholar,PIN048414,1110,
DFID,CSC,28/07/2020,Scholar Stipend,Award Costs,Scholar,PIN048415,619.96,
DFID,CSC,28/07/2020,Scholar Stipend,Award Costs,Scholar,PIN048416,1362,
DFID,CSC,28/07/2020,Scholar Stipend,Award Costs,Scholar,PIN048417,1362,
DFID,CSC,28/07/2020,Scholar Stipend,Award Costs,Scholar,PIN048418,1110,
DFID,CSC,28/07/2020,Scholar Stipend,Award Costs,Scholar,PIN048419,1110,
DFID,CSC,28/07/2020,Scholar Stipend,Award Costs,Scholar,PIN048420,1110,
DFID,CSC,28/07/2020,Scholar Stipend,Award Costs,Scholar,PIN048421,1110,
DFID,CSC,28/07/2020,Scholar Stipend,Award Costs,Scholar,PIN048422,1362,
DFID,CSC,28/07/2020,Scholar Stipend,Award Costs,Scholar,PIN048423,1110,
DFID,CSC,28/07/2020,Scholar Stipend,Award Costs,Scholar,PIN048424,1362,
DFID,CSC,28/07/2020,Scholar Stipend,Award Costs,Scholar,PIN048425,1110,
DFID,CSC,28/07/2020,Scholar Stipend,Award Costs,Scholar,PIN048426,1110,
DFID,CSC,28/07/2020,Scholar Stipend,Award Costs,Scholar,PIN048427,1110,
DFID,CSC,28/07/2020,Scholar Stipend,Award Costs,Scholar,PIN048428,1110,
DFID,CSC,28/07/2020,Scholar Stipend,Award Costs,Scholar,PIN048429,1110,
DFID,CSC,28/07/2020,Scholar Stipend,Award Costs,Scholar,PIN048430,1110,
DFID,CSC,28/07/2020,Scholar Stipend,Award Costs,Scholar,PIN048431,1362,
DFID,CSC,28/07/2020,Scholar Stipend,Award Costs,Scholar,PIN048432,1110,
DFID,CSC,28/07/2020,Scholar Stipend,Award Costs,Scholar,PIN048433,1110,
DFID,CSC,28/07/2020,Scholar Stipend,Award Costs,Scholar,PIN048434,802.3,
DFID,CSC,28/07/2020,Scholar Stipend,Award Costs,Scholar,PIN048435,1362,
DFID,CSC,28/07/2020,Scholar Stipend,Award Costs,Scholar,PIN048436,1110,
DFID,CSC,28/07/2020,Scholar Stipend,Award Costs,Scholar,PIN048437,1110,
DFID,CSC,28/07/2020,Scholar Stipend,Award Costs,Scholar,PIN048438,1110,
DFID,CSC,28/07/2020,Scholar Stipend,Award Costs,Scholar,PIN048439,1110,
DFID,CSC,28/07/2020,Scholar Stipend,Award Costs,Scholar,PIN048440,1110,
DFID,CSC,28/07/2020,Scholar Stipend,Award Costs,Scholar,PIN048441,1110,
DFID,CSC,28/07/2020,Scholar Stipend,Award Costs,Scholar,PIN048442,1110,
DFID,CSC,28/07/2020,Scholar Stipend,Award Costs,Scholar,PIN048443,1110,
DFID,CSC,28/07/2020,Scholar Stipend,Award Costs,Scholar,PIN048444,1110,
DFID,CSC,28/07/2020,Scholar Stipend,Award Costs,Scholar,PIN048445,1110,
DFID,CSC,28/07/2020,Scholar Stipend,Award Costs,Scholar,PIN048446,1110,
DFID,CSC,28/07/2020,Scholar Stipend,Award Costs,Scholar,PIN048447,1110,
DFID,CSC,28/07/2020,Scholar Allowances,Award Costs,Scholar,PIN048448,1110,
DFID,CSC,28/07/2020,Scholar Allowances,Award Costs,Scholar,PIN048471,710,
DFID,CSC,29/07/2020,Scholar Stipend,Award Costs,Scholar,PIN048554,1110,
DFID,CSC,29/07/2020,Scholar Stipend,Award Costs,Scholar,PIN048555,1110,
DFID,CSC,29/07/2020,Scholar Stipend,Award Costs,Scholar,PIN048556,1110,
DFID,CSC,29/07/2020,Scholar Allowances,Award Costs,Scholar,PIN048557,474.4,
DFID,CSC,29/07/2020,Scholar Stipend,Programme Costs,Scholar,PIN048557,888,
DFID,CSC,29/07/2020,Scholar Allowances,Award Costs,Scholar,PIN048558,87.94,
DFID,CSC,29/07/2020,Scholar Allowances,Award Costs,Scholar,PIN048558,130.99,
DFID,CSC,29/07/2020,Scholar Stipend,Award Costs,Scholar,PIN048558,408.44,
DFID,CSC,29/07/2020,Scholar Stipend,Award Costs,Scholar,PIN048559,888,
DFID,CSC,29/07/2020,Scholar Allowances,Award Costs,Scholar,PIN048560,191.2,
DFID,CSC,29/07/2020,Scholar Allowances,Award Costs,Scholar,PIN048560,169.6,
DFID,CSC,29/07/2020,Scholar Allowances,Award Costs,Scholar,PIN048560,191.2,
DFID,CSC,29/07/2020,Scholar Allowances,Award Costs,Scholar,PIN048560,169.6,
DFID,CSC,29/07/2020,Scholar Stipend,Award Costs,Scholar,PIN048560,555,
DFID,CSC,29/07/2020,Scholar Stipend,Award Costs,Scholar,PIN048560,492.32,
DFID,CSC,31/07/2020,Service Provision,Programme Costs,The British Council,PIN048566,55.8,
DFID,CSC,31/07/2020,Alumni Engagement,Programme Costs,The British Council,PIN048566,279.02,
DFID,CSC,31/07/2020,Alumni Engagement,Programme Costs,The British Council,PIN048566,103.51,
DFID,CSC,31/07/2020,Service Provision,Programme Costs,The British Council,PIN048566,9944.46,
DFID,CSC,31/07/2020,Alumni Engagement,Programme Costs,The British Council,PIN048566,49722.25,
DFID,CSC,31/07/2020,Service Provision,Admin Costs,The British Council,PIN048566,3593.24,
DFID,CSC,31/07/2020,Service Provision,Admin Costs,The British Council,PIN048566,17966.21,
DFID,CSC,31/07/2020,Alumni Engagement,Programme Costs,The British Council,PIN048567,21343.63,
DFID,CSC,31/07/2020,Miscellaneous,Admin Costs,Crowe UK LLP,PIN048568,2520,
DFID,CSC,31/07/2020,Bank Charges,Admin Costs,Association of Commonwealth Univs,PIN048569,14.4,
DFID,CSC,31/07/2020,Miscellaneous,Admin Costs,Association of Commonwealth Univs,PIN048569,1080,
DFID,CSC,31/07/2020,Engagement,Admin Costs,Association of Commonwealth Univs,PIN048569,5174.21,
DFID,CSC,31/07/2020,Scholar Engagement,Programme Costs,Association of Commonwealth Univs,PIN048569,459,
DFID,CSC,31/07/2020,Engagement,Programme Costs,Association of Commonwealth Univs,PIN048569,95.92,
DFID,CSC,31/07/2020,Engagement,Admin Costs,Association of Commonwealth Univs,PIN048569,6525,
DFID,CSC,31/07/2020,Engagement,Admin Costs,Association of Commonwealth Univs,PIN048569,8119.99,
DFID,CSC,31/07/2020,Engagement,Admin Costs,Association of Commonwealth Univs,PIN048569,-15180,
DFID,CSC,31/07/2020,Scholar Engagement,Programme Costs,Association of Commonwealth Univs,PIN048569,771.6,
DFID,CSC,31/07/2020,Alumni Engagement,Programme Costs,Association of Commonwealth Univs,PIN048569,65.56,
DFID,CSC,31/07/2020,Alumni Engagement,Programme Costs,Association of Commonwealth Univs,PIN048569,308.84,
DFID,CSC,31/07/2020,Scholar Engagement,Programme Costs,Association of Commonwealth Univs,PIN048569,72,
DFID,CSC,31/07/2020,Engagement,Admin Costs,Association of Commonwealth Univs,PIN048569,15180,
DFID,CSC,31/07/2020,Alumni Engagement,Programme Costs,Association of Commonwealth Univs,PIN048569,389.28,
DFID,CSC,31/07/2020,Secretariat Travel,Programme Costs,Association of Commonwealth Univs,PIN048569,728.4,
DFID,CSC,31/07/2020,Secretariat Travel,Programme Costs,Association of Commonwealth Univs,PIN048569,733.1,
DFID,CSC,31/07/2020,Engagement,Admin Costs,Association of Commonwealth Univs,PIN048569,50.39,
DFID,CSC,31/07/2020,Alumni Engagement,Programme Costs,The British Council,PIN048570,908.81,
DFID,CSC,31/07/2020,Service Provision,Programme Costs,The British Council,PIN048570,66.69,
DFID,CSC,31/07/2020,Alumni Engagement,Programme Costs,The British Council,PIN048570,333.45,
DFID,CSC,31/07/2020,Service Provision,Programme Costs,The British Council,PIN048570,10405.45,
DFID,CSC,31/07/2020,Alumni Engagement,Programme Costs,The British Council,PIN048570,52027.25,
DFID,CSC,31/07/2020,Service Provision,Admin Costs,The British Council,PIN048570,3553.95,
DFID,CSC,31/07/2020,Service Provision,Admin Costs,The British Council,PIN048570,17769.75,
DFID,CSC,15/07/2020,Scholar Stipend,Award Costs,Scholar,PIN048581,720,
DFID,CSC,15/07/2020,Scholar Stipend,Award Costs,Scholar,PIN048581,720,
DFID,CSC,15/07/2020,Scholar Stipend,Award Costs,Scholar,PIN048581,-2609.07,
DFID,CSC,15/07/2020,Scholar Stipend,Award Costs,Scholar,PIN048581,-2134.1,
DFID,CSC,15/07/2020,Scholar Stipend,Award Costs,Scholar,PIN048581,-3062.32,
DFID,CSC,15/07/2020,Scholar Stipend,Award Costs,Scholar,PIN048581,-3317.85,
DFID,CSC,15/07/2020,Bank Charges,Programme Costs,MasterCard Prepaid Management Services Ltd,PIN048581,14.4,
DFID,CSC,15/07/2020,Scholar Allowances,Award Costs,Scholar,PIN048582,967.71,
DFID,CSC,15/07/2020,Scholar Travel,Award Costs,Scholar,PIN048582,540.99,
DFID,CSC,15/07/2020,Bank Charges,Programme Costs,MasterCard Prepaid Management Services Ltd,PIN048582,15.09,
DFID,CSC,30/07/2020,Scholar Stipend,Award Costs,Scholar,PIN048583,1696,
DFID,CSC,30/07/2020,Scholar Stipend,Award Costs,Scholar,PIN048583,1696,
DFID,CSC,30/07/2020,Scholar Stipend,Award Costs,Scholar,PIN048583,1696,
DFID,CSC,30/07/2020,Bank Charges,Programme Costs,MasterCard Prepaid Management Services Ltd,PIN048583,55.34,
DFID,CSC,30/07/2020,Scholar Stipend,Award Costs,Scholar,PIN048583,445.77,
DFID,CSC,01/07/2020,Commission Meetings,Admin Costs,Commission Chair,PPI048610,3000,
